bitfinex/quotes_SOLUSD_20260223
["timestamp","ask_amount","ask_price","bid_price","bid_amount"]
[1771877953540,12.34964541,78.21,78.189,3.48251717]
[1771877953929,12.34964541,78.2,78.174,3.48251717]
[1771877954244,12.34964541,78.19,78.174,3.48251717]
[1771877954453,1.89719796,78.199,78.174,12.79197687]
[1771877954838,1.89719796,78.199,78.174,16.27449404]
[1771877955023,1.69719796,78.199,78.174,16.27449404]
[1771877955229,12.34964541,78.19,78.168,3.48251717]
[1771877955529,12.34964541,78.19,78.168,3.28251717]
[1771877955948,1.89101433,78.19,78.168,3.28251717]
[1771877956244,14.24065974,78.19,78.168,3.28251717]
[1771877956830,12.78952282,78.189,78.168,3.28251717]
[1771877960550,5.53812374,78.19,78.169,3.47875653]
[1771877960850,5.53812374,78.2,78.169,3.47875653]
[1771877961052,12.78788731,78.199,78.169,3.47875653]
[1771877961730,14.65907572,78.199,78.169,3.47875653]
[1771877962548,5.53812374,78.19,78.17,12.79263144]
[1771877962850,5.53812374,78.19,78.171,3.47875653]
[1771877963347,12.78788731,78.199,78.171,3.47875653]
[1771877963552,5.53812374,78.19,78.17,12.79263144]
[1771877963748,5.53812374,78.19,78.171,3.47875653]
[1771877967736,5.53812374,78.19,78.172,12.79230414]
[1771877968549,5.53812374,78.19,78.172,16.27106067]
[1771877969457,5.53812374,78.19,78.173,3.47875653]
[1771877970331,5.53812374,78.19,78.174,12.79197687]
[1771877970537,5.53812374,78.21,78.175,3.47875653]
[1771877971749,5.53812374,78.22,78.181,3.47875653]
[1771877972055,5.53812374,78.22,78.191,3.47875653]
[1771877972440,18.32274116,78.22,78.193,3.47875653]
[1771877972639,18.32274116,78.22,78.184,48.24494909]
[1771877972640,5.53812374,78.21,78.184,48.24494909]
[1771877973049,5.53812374,78.21,78.185,3.47875653]
[1771877974155,31.9543067,78.237,78.185,3.47875653]
[1771877974353,31.9543067,78.237,78.184,44.76619256]
[1771877974354,0.2,78.25,78.203,3.47875653]
[1771877974536,5.73812374,78.25,78.211,3.47875653]
[1771877975345,12.77971603,78.249,78.211,3.47875653]
[1771877976647,12.77971603,78.249,78.213,3.47875653]
[1771877976847,5.73812374,78.25,78.213,3.47875653]
[1771877977050,0.2,78.25,78.221,3.47875653]
[1771877978961,0.2,78.25,78.222,12.78412722]
[1771877979164,0.2,78.25,78.223,3.47875653]
[1771877979550,0.2,78.25,78.217,3.47875653]
[1771877979551,1.82705662,78.239,78.217,3.47875653]
[1771877981042,5.53812374,78.24,78.218,12.78478099]
[1771877981239,5.53812374,78.24,78.218,16.26353752]
[1771877981440,12.78134945,78.239,78.218,3.47875653]
[1771877982165,12.78134945,78.239,78.221,0.2]
[1771877982386,1.82055088,78.229,78.18,5.53812374]
[1771877982672,44.73472308,78.239,78.189,3.47875653]
[1771877982673,5.53812374,78.2,78.189,3.47875653]
[1771877982976,5.53812374,78.21,78.189,3.47875653]
[1771877983145,18.32428612,78.21,78.189,3.47875653]
[1771877984579,5.53812374,78.2,78.182,3.67875653]
[1771877984741,5.53812374,78.2,78.116,38.43]
[1771877984742,1.21495361,78.189,78.165,3.47875653]
[1771877984946,5.53812374,78.18,78.165,3.47875653]
[1771877985245,5.53821866,78.19,78.172,16.47101031]
[1771877985458,5.53821866,78.19,78.172,3.67875653]
[1771877986362,5.53821866,78.21,78.174,3.47875653]
[1771877986674,5.53821866,78.2,78.174,3.47875653]
[1771877987659,5.53821866,78.2,78.172,0.2]
[1771877987660,5.53821866,78.2,78.176,3.47875653]
[1771877988266,12.78788731,78.199,78.176,3.47875653]
[1771877989052,5.53821866,78.19,78.173,12.7921405]
[1771877989862,5.53821866,78.19,78.174,3.54430091]
[1771877990149,5.53821866,78.2,78.174,3.54430091]
[1771877991772,5.53821866,78.21,78.176,3.54430091]
[1771877991970,5.53821866,78.2,78.176,3.54430091]
[1771877994068,5.53821866,78.19,78.169,3.54430091]
[1771877994565,5.53821866,78.18,78.153,3.54430091]
[1771877994766,5.53821866,78.18,78.154,3.54430091]
[1771877994948,1.19991355,78.19,78.154,3.54430091]
[1771877994949,6.73813221,78.19,78.154,3.54430091]
[1771877995274,5.53821866,78.18,78.154,3.54430091]
[1771877995474,6.73813221,78.19,78.154,3.54430091]
[1771877997461,5.53821866,78.17,78.15,3.54430091]
[1771877997672,5.53821866,78.18,78.152,3.54430091]
[1771877998470,12.78952282,78.189,78.152,3.54430091]
[1771878000263,5.53821866,78.18,78.154,3.54430091]
[1771878001578,5.53821866,78.2,78.161,3.54430091]
[1771878002480,12.78704428,78.205,78.17,5.53821866]
[1771878002779,12.78704428,78.205,78.171,3.54430091]
[1771878005182,12.78625222,78.209,78.173,3.54430091]
[1771878005982,12.78625222,78.209,78.181,3.54430091]
[1771878007065,5.53821866,78.2,78.181,3.54430091]
[1771878007366,5.53821866,78.2,78.117,51.20483658]
[1771878007367,1.18262239,78.199,78.171,3.54430091]
[1771878008683,5.53821866,78.2,78.171,3.54430091]
[1771878008878,1.17107898,78.206,78.171,3.54430091]
[1771878009083,1.17107898,78.208,78.173,3.54430091]
[1771878009587,5.53821866,78.21,78.173,3.54430091]
[1771878010473,13.94712901,78.209,78.173,3.54430091]
[1771878010678,1.16087679,78.209,78.173,3.54430091]
[1771878011575,1.16087679,78.209,78.175,3.54430091]
[1771878014291,5.53821866,78.19,78.161,3.54430091]
[1771878014593,6.65944018,78.19,78.161,3.54430091]
[1771878015281,5.53821866,78.2,78.162,3.54430091]
[1771878015487,12.7865792,78.207,78.171,3.54430091]
[1771878015886,19.43592897,78.21,78.171,3.54430091]
[1771878016689,19.42641593,78.21,78.171,3.54430091]
[1771878017283,19.42641593,78.21,78.172,12.79230414]
[1771878017574,19.42641593,78.21,78.173,3.54430091]
[1771878018095,5.53821866,78.22,78.181,3.45520595]
[1771878018391,1.07419629,78.219,78.181,3.45520595]
[1771878019681,1.0561226,78.217,78.183,3.45520595]
[1771878020396,5.53821866,78.21,78.183,3.45520595]
[1771878020576,1.0561226,78.217,78.183,3.45520595]
[1771878020777,5.53821866,78.21,78.183,3.45520595]
[1771878021492,12.78478099,78.218,78.16,5.53821866]
[1771878021493,5.53821866,78.2,78.16,5.53821866]
[1771878021676,1.03848006,78.199,78.168,3.41732748]
[1771878021881,1.03848006,78.199,78.17,3.41732748]
[1771878022191,13.82641347,78.199,78.17,3.41732748]
[1771878022497,1.02982442,78.198,78.17,3.41732748]
[1771878022689,1.02982442,78.198,78.169,12.79279509]
[1771878022876,1.02127483,78.189,78.169,12.79279509]
[1771878023072,12.78793341,78.199,78.17,3.41732748]
[1771878023278,1.02127483,78.198,78.17,3.41732748]
[1771878023777,5.53821866,78.2,78.17,3.41732748]
[1771878023982,1.01285056,78.199,78.172,3.41732748]
[1771878025293,1.00444925,78.222,78.18,5.53821866]
[1771878025602,1.00444925,78.219,78.191,3.41732748]
[1771878026589,5.53821866,78.21,78.191,3.41732748]
[1771878027595,12.78478099,78.218,78.193,3.41732748]
[1771878028480,0.97991258,78.217,78.193,3.41732748]
[1771878028803,5.53821866,78.21,78.193,3.41732748]
[1771878029703,12.7851079,78.216,78.194,12.78870501]
[1771878029904,5.53821866,78.21,78.194,12.78870501]
[1771878030419,5.53821866,78.2,78.171,3.41732748]
[1771878030706,44.74787766,78.216,78.165,3.41732748]
[1771878030707,5.53821866,78.19,78.165,3.41732748]
[1771878031004,5.53821866,78.19,78.166,12.79328608]
[1771878031300,5.53821866,78.21,78.171,3.41732748]
[1771878031491,12.78646886,78.208,78.171,3.41732748]
[1771878031688,0.9562825,78.207,78.171,3.41732748]
[1771878033102,5.53821866,78.19,78.16,5.53821866]
[1771878033294,6.47916562,78.18,78.155,3.41732748]
[1771878033488,5.53821866,78.18,78.155,3.41732748]
[1771878035903,5.53821866,78.18,78.14,5.53821866]
[1771878035904,5.53821866,78.18,78.157,3.41732748]
[1771878036307,6.45681032,78.18,78.157,3.41732748]
[1771878037606,5.53821866,78.17,78.156,12.79492297]
[1771878038283,5.53821866,78.17,78.152,3.41732748]
[1771878039713,5.53821866,78.2,78.129,3.41732748]
[1771878039714,0.8900523,78.159,78.129,3.41732748]
[1771878039893,5.53821866,78.15,78.129,3.41732748]
[1771878040093,5.53821866,78.16,78.129,3.41732748]
[1771878040400,12.79121664,78.179,78.143,3.41732748]
[1771878040999,63.93154762,78.209,78.142,44.79025363]
[1771878041000,5.53821866,78.19,78.151,3.41732748]
[1771878042008,44.75760559,78.199,78.151,3.41732748]
[1771878042009,0.87618833,78.179,78.151,3.41732748]
[1771878042589,0.87618833,78.179,78.14,5.53821866]
[1771878042590,0.87618833,78.179,78.153,3.41732748]
[1771878042793,5.53821866,78.18,78.153,3.41732748]
[1771878043106,18.32768677,78.19,78.153,3.41732748]
[1771878044617,0.86265687,78.207,78.161,3.41732748]
[1771878044794,0.86265687,78.207,78.16,5.53821866]
[1771878044795,5.53821866,78.2,78.171,3.41732748]
[1771878045114,31.96166839,78.219,78.191,3.41732748]
[1771878045115,0.85601908,78.219,78.191,3.41732748]
[1771878045307,0.85601908,78.226,78.191,3.41732748]
[1771878045891,44.72957774,78.248,78.191,3.41732748]
[1771878046086,5.53821866,78.23,78.191,3.41732748]
[1771878046706,5.53821866,78.23,78.19,5.53821866]
[1771878046707,12.78298329,78.229,78.193,3.41732748]
[1771878046910,5.53821866,78.22,78.193,3.41732748]
[1771878047213,5.53821866,78.2,78.171,3.41732748]
[1771878047393,5.53723675,78.2,78.171,3.41732748]
[1771878048720,5.53723675,78.2,78.173,3.24760417]
[1771878050525,5.53723675,78.2,78.172,12.79230414]
[1771878050526,5.53723675,78.21,78.181,3.24760417]
[1771878050896,5.53723675,78.2,78.182,12.79066792]
[1771878051814,5.53723675,78.21,78.183,3.24760417]
[1771878052017,5.53723675,78.2,78.183,3.24760417]
[1771878052606,0.79962963,78.208,78.183,3.24760417]
[1771878055595,5.53723675,78.2,78.182,12.79066792]
[1771878055999,5.53723675,78.2,78.178,12.79132236]
[1771878056815,0.77634969,78.199,78.178,12.79132236]
[1771878057018,0.77634969,78.189,78.162,3.24760417]
[1771878057522,5.53723675,78.18,78.163,12.7937771]
[1771878059007,0.77634969,78.189,78.164,3.24760417]
[1771878059723,5.53723675,78.18,78.157,3.24760417]
[1771878060025,12.78968639,78.188,78.12,3.34760417]
[1771878060026,0.75965337,78.169,78.12,3.34760417]
[1771878060203,313.34731668,78.188,78.12,3.34760417]
[1771878060204,14.30202323,78.168,78.12,3.34760417]
[1771878060519,15.87332785,78.179,78.122,3.24760417]
[1771878060520,5.53723675,78.15,78.122,3.24760417]
[1771878060904,0.75965337,78.155,78.122,3.24760417]
[1771878061104,5.53723675,78.15,78.122,3.24760417]
[1771878061327,5.53723675,78.14,78.122,3.24760417]
[1771878061624,5.53723675,78.15,78.122,3.24760417]
[1771878062003,18.33154556,78.16,78.124,3.24760417]
[1771878063203,18.33154556,78.16,78.123,12.80032768]
[1771878063204,12.79324499,78.167,78.131,3.24760417]
[1771878063812,5.53723675,78.16,78.131,3.24760417]
[1771878064005,5.53723675,78.16,78.133,3.24760417]
[1771878064208,12.79115875,78.179,78.141,3.24760417]
[1771878064425,5.53723675,78.18,78.132,44.79598627]
[1771878064426,0.73819907,78.2,78.161,3.24760417]
[1771878064626,5.53723675,78.2,78.171,3.24760417]
[1771878064825,5.53723675,78.24,78.181,3.24760417]
[1771878064826,0.73301757,78.214,78.181,3.24760417]
[1771878065027,5.53723675,78.21,78.181,3.24760417]
[1771878065416,12.78546529,78.214,78.181,3.24760417]
[1771878066027,5.53723675,78.22,78.181,3.24760417]
[1771878066256,5.53723675,78.24,78.201,3.24760417]
[1771878066257,6.26508214,78.24,78.201,3.24760417]
[1771878066405,5.53723675,78.23,78.201,3.24760417]
[1771878067128,5.53723675,78.22,78.201,3.24760417]
[1771878067329,12.35205447,78.22,78.201,3.24760417]
[1771878067625,0.72272562,78.229,78.201,3.24760417]
[1771878068832,12.78314669,78.228,78.201,3.24760417]
[1771878069717,3.29559847,78.219,78.189,12.78951199]
[1771878070041,3.29559847,78.226,78.19,12.35205447]
[1771878070723,12.35205447,78.22,78.189,44.76331904]
[1771878071453,15.64765294,78.21,78.18,12.35205447]
[1771878071615,15.64765294,78.21,78.181,3.24760417]
[1771878071932,12.78461754,78.219,78.171,3.24760417]
[1771878071933,3.29559847,78.199,78.171,3.24760417]
[1771878074547,3.29559847,78.199,78.172,12.79230414]
[1771878074739,3.29559847,78.209,78.181,3.24760417]
[1771878075215,3.29559847,78.219,78.181,3.24760417]
[1771878075416,12.35205447,78.21,78.181,3.24760417]
[1771878076047,3.29559847,78.223,78.181,3.24760417]
[1771878076236,12.35205447,78.22,78.191,3.24760417]
[1771878076950,25.13654048,78.22,78.193,3.24760417]
[1771878077333,12.35205447,78.21,78.188,12.78965032]
[1771878077734,12.35205447,78.21,78.188,16.22138989]
[1771878079428,12.35205447,78.21,78.189,3.43173957]
[1771878079824,12.78526183,78.216,78.189,3.43173957]
[1771878080631,3.4190913,78.224,78.191,3.32537815]
[1771878081534,3.4190913,78.224,78.193,3.32537815]
[1771878081535,12.35205447,78.22,78.193,3.32537815]
[1771878084449,12.35205447,78.22,78.195,3.32537815]
[1771878084953,15.77114577,78.22,78.195,3.32537815]
[1771878086252,3.4190913,78.209,78.171,3.32537815]
[1771878086758,12.35205447,78.21,78.181,3.32537815]
[1771878087134,3.4190913,78.215,78.181,3.32537815]
[1771878088450,12.78524087,78.216,78.181,3.32537815]
[1771878088775,3.4190913,78.234,78.191,3.32537815]
[1771878088932,3.4190913,78.234,78.201,3.32537815]
[1771878089127,5.53480289,78.23,78.201,3.32537815]
[1771878089338,8.95389419,78.23,78.201,3.32537815]
[1771878089652,3.4190913,78.229,78.201,3.32537815]
[1771878090052,5.53480289,78.22,78.201,3.32537815]
[1771878090649,3.4190913,78.223,78.202,12.78739674]
[1771878091457,3.4190913,78.219,78.185,3.32537815]
[1771878092035,3.4190913,78.219,78.185,12.79017294]
[1771878092235,3.4190913,78.219,78.186,3.32537815]
[1771878092956,3.4190913,78.217,78.187,12.78984997]
[1771878093161,3.4190913,78.217,78.188,3.32537815]
[1771878093654,5.73480289,78.25,78.211,3.32537815]
[1771878093855,5.73480289,78.25,78.231,3.32537815]
[1771878093856,12.97957062,78.25,78.231,3.32537815]
[1771878095041,12.97957062,78.25,78.222,3.32537815]
[1771878097185,16.39866192,78.25,78.222,3.32537815]
[1771878097465,3.4190913,78.229,78.203,3.32537815]
[1771878098344,3.4190913,78.236,78.203,3.32537815]
[1771878098551,3.4190913,78.236,78.211,3.32537815]
[1771878098867,3.4190913,78.249,78.211,3.32537815]
[1771878099667,3.4190913,78.247,78.212,3.32537815]
[1771878100156,3.4190913,78.239,78.212,3.32537815]
[1771878100663,3.4190913,78.239,78.212,16.11113992]
[1771878100969,3.4190913,78.239,78.213,3.32537815]
[1771878102353,12.78151281,78.238,78.213,3.32537815]
[1771878102552,16.20060411,78.238,78.213,3.32537815]
[1771878102866,3.4190913,78.229,78.203,3.32537815]
[1771878103562,3.4190913,78.229,78.205,3.32537815]
[1771878104368,12.78151281,78.238,78.207,3.32537815]
[1771878104568,0.2,78.25,78.206,12.7867427]
[1771878104569,3.4190913,78.249,78.221,3.32537815]
[1771878105676,12.77987935,78.248,78.223,3.32537815]
[1771878106053,3.4190913,78.249,78.223,3.32537815]
[1771878106253,0.2,78.25,78.231,3.32537815]
[1771878107658,5.53480289,78.24,78.217,3.36902187]
[1771878107862,3.36935338,78.239,78.217,3.36902187]
[1771878108171,12.77971603,78.249,78.175,127.91813237]
[1771878108172,3.36935338,78.229,78.201,3.36902187]
[1771878108362,5.53480289,78.22,78.201,3.36902187]
[1771878108869,3.36935338,78.229,78.201,3.36902187]
[1771878110177,108.62758628,78.249,77.988,258.93198151]
[1771878110178,15.72188667,78.21,78.184,3.36902187]
[1771878110350,12.35253329,78.21,78.184,3.36902187]
[1771878111071,3.36935338,78.218,78.184,3.36902187]
[1771878116169,3.36935338,78.216,78.184,3.36902187]
[1771878117080,3.36935338,78.216,78.185,12.79017714]
[1771878117280,3.36935338,78.216,78.186,3.36902187]
[1771878120589,3.36935338,78.209,78.177,16.16036327]
[1771878120886,3.36935338,78.209,78.178,3.36902187]
[1771878121184,12.35253329,78.2,78.178,3.36902187]
[1771878121563,3.36935338,78.189,78.121,76.80393235]
[1771878121757,3.69383402,78.203,78.121,76.80393235]
[1771878121758,12.35253329,78.16,78.13,12.35253329]
[1771878121974,12.35253329,78.16,78.121,44.80229387]
[1771878121975,12.35253329,78.15,78.121,44.80229387]
[1771878122173,15.72188667,78.16,78.121,44.80229387]
[1771878122382,15.72188667,78.16,78.13,12.35253329]
[1771878122579,12.79443186,78.159,78.131,12.79901703]
[1771878123163,12.79443186,78.159,78.122,12.80049153]
[1771878123566,12.79443186,78.159,78.123,3.36902187]
[1771878124284,3.36935338,78.158,78.123,3.36902187]
[1771878124669,12.35253329,78.13,78.12,0.1]
[1771878124877,3.36935338,78.133,78.12,0.1]
[1771878125071,15.72188667,78.14,78.12,0.1]
[1771878125275,3.36935338,78.149,78.121,3.36902187]
[1771878126070,12.35253329,78.14,78.121,3.36902187]
[1771878126269,3.36935338,78.129,78.11,0.1]
[1771878127089,12.35253329,78.13,78.11,0.1]
[1771878127090,12.79844618,78.135,78.11,3.46902187]
[1771878127278,3.36935338,78.129,78.11,0.1]
[1771878127492,1.86935338,78.129,78.11,0.1]
[1771878128474,12.79844618,78.135,78.111,3.36902187]
[1771878128793,12.35253329,78.15,78.111,3.36902187]
[1771878129170,12.79606904,78.149,78.113,3.36902187]
[1771878129369,3.36935338,78.148,78.113,3.36902187]
[1771878130191,12.35253329,78.14,78.113,3.36902187]
[1771878130566,12.79770665,78.139,78.113,3.36902187]
[1771878132002,3.36935338,78.138,78.113,3.36902187]
[1771878132489,3.36935338,78.127,78.11,0.1]
[1771878133071,0.47704426,78.112,78.11,0.1]
[1771878133266,12.79950849,78.128,78.11,0.1]
[1771878133670,3.36935338,78.127,78.11,0.1]
[1771878134287,12.79950849,78.128,78.11,3.46902187]
[1771878134498,12.79889981,78.132,78.11,3.46902187]
[1771878134681,12.35253329,78.14,78.112,3.36902187]
[1771878134880,12.79770665,78.139,78.112,3.36902187]
[1771878135082,3.36935338,78.129,78.11,0.1]
[1771878136901,12.7984531,78.135,78.111,3.36902187]
[1771878137596,16.16780648,78.135,78.111,3.36902187]
[1771878138503,3.21072729,78.134,78.111,3.36902187]
[1771878138899,12.35253329,78.13,78.111,3.36902187]
[1771878139303,5.54746227,78.13,78.111,3.36902187]
[1771878139511,5.54746227,78.13,78.11,0.1]
[1771878139512,3.21072729,78.129,78.11,0.1]
[1771878141483,12.79950849,78.128,78.11,0.1]
[1771878142193,12.79874265,78.133,78.11,0.1]
[1771878142513,5.54746227,78.13,78.11,3.32496047]
[1771878143397,15.97119264,78.133,78.11,3.32496047]
[1771878143597,31.99331871,78.142,78.11,3.32496047]
[1771878143598,5.54746227,78.13,78.11,3.32496047]
[1771878143803,3.17244999,78.129,78.11,0.1]
[1771878146512,12.79950849,78.128,78.11,3.32496047]
[1771878148396,5.54746227,78.13,78.112,3.22496047]
[1771878148589,12.79839399,78.135,78.112,3.22496047]
[1771878148793,5.54746227,78.13,78.112,3.22496047]
[1771878150309,5.54746227,78.13,78.11,12.90237235]
[1771878150310,5.54746227,78.12,78.11,0.1]
[1771878151200,18.34671725,78.13,78.11,3.32496047]
[1771878153108,21.51916724,78.13,78.11,3.32496047]
[1771878155113,12.79688779,78.144,78.112,3.22496047]
[1771878155527,12.79620875,78.149,78.112,3.22496047]
[1771878155699,12.79620875,78.149,78.121,3.22496047]
[1771878157599,5.54746227,78.16,78.123,3.22496047]
[1771878157996,12.79344975,78.165,78.131,3.22496047]
[1771878159020,12.79285698,78.169,78.141,3.22496047]
[1771878159730,3.17244999,78.177,78.143,3.22496047]
[1771878160714,5.54746227,78.17,78.143,3.22496047]
[1771878160917,3.17244999,78.177,78.143,3.22496047]
[1771878161116,18.3384574,78.18,78.143,3.22496047]
[1771878161419,3.17244999,78.179,78.143,3.22496047]
[1771878162726,3.17244999,78.192,78.145,3.22496047]
[1771878162922,3.17244999,78.192,78.161,3.22496047]
[1771878164418,3.17244999,78.192,78.171,3.22496047]
[1771878164612,12.7865786,78.208,78.171,3.22496047]
[1771878165209,3.17244999,78.207,78.173,3.22496047]
[1771878166809,5.54746227,78.2,78.173,3.22496047]
[1771878167113,12.79132236,78.178,78.142,12.79721532]
[1771878167314,12.79132236,78.178,78.142,44.79025363]
[1771878167511,18.3368945,78.19,78.16,5.54746227]
[1771878168024,3.10953073,78.189,78.15,5.54746227]
[1771878168431,3.30953073,78.21,78.143,5.36086188]
[1771878168616,3.10953073,78.208,78.17,5.54746227]
[1771878168805,3.10953073,78.199,78.16,5.54746227]
[1771878169002,3.10953073,78.199,78.161,2.99122716]
[1771878169406,3.10953073,78.197,78.163,2.99122716]
[1771878169629,3.10953073,78.189,78.163,2.99122716]
[1771878169928,12.78805084,78.198,78.163,2.99122716]
[1771878170128,12.78805084,78.198,78.161,12.7940235]
[1771878170129,12.78641571,78.208,78.171,2.99122716]
[1771878170508,3.10953073,78.207,78.171,2.99122716]
[1771878171614,12.78641571,78.208,78.181,2.99122716]
[1771878172905,5.73819739,78.21,78.181,2.99122716]
[1771878173108,12.78625222,78.209,78.181,2.99122716]
[1771878173530,0.2,78.21,78.182,12.79066792]
[1771878173726,0.2,78.22,78.192,2.99122716]
[1771878173916,0.2,78.22,78.201,2.99122716]
[1771878175229,5.53819739,78.21,78.183,2.99122716]
[1771878175434,3.10953073,78.209,78.183,2.99122716]
[1771878175631,5.53819739,78.21,78.183,2.99122716]
[1771878176641,3.10953073,78.216,78.183,2.99122716]
[1771878176938,3.10953073,78.216,78.192,2.99122716]
[1771878177240,12.78527136,78.215,78.192,2.99122716]
[1771878177428,15.89480209,78.215,78.192,2.99122716]
[1771878177744,3.10953073,78.214,78.192,2.99122716]
[1771878179037,3.10953073,78.214,78.192,15.7801917]
[1771878179433,3.10953073,78.214,78.192,12.78896454]
[1771878180338,3.10953073,78.247,78.201,2.99122716]
[1771878180522,3.10953073,78.247,78.211,2.99122716]
[1771878180716,3.10953073,78.247,78.192,44.76154485]
[1771878180717,0.2,78.25,78.221,2.99122716]
[1771878181043,12.77971603,78.249,78.221,2.99122716]
[1771878181847,0.2,78.25,78.223,2.99122716]
[1771878182144,0.2,78.25,78.231,2.99122716]
[1771878183336,0.2,78.25,78.232,2.99122716]
[1771878183722,0.2,78.25,78.226,12.78332904]
[1771878184033,0.2,78.25,78.227,2.99122716]
[1771878184245,0.2,78.25,78.231,2.99122716]
[1771878184420,0.2,78.25,78.221,31.96042411]
[1771878184421,0.2,78.25,78.227,12.78331011]
[1771878184617,0.2,78.25,78.226,2.99122716]
[1771878184821,0.2,78.25,78.231,2.99122716]
[1771878185439,5.73819739,78.27,78.201,115.08717161]
[1771878185440,0.2,78.27,78.241,2.99122716]
[1771878185644,12.77645044,78.269,78.241,2.99122716]
[1771878186438,0.2,78.27,78.241,2.99122716]
[1771878186638,0.2,78.27,78.251,2.99122716]
[1771878186943,12.77273196,78.292,78.271,2.99122716]
[1771878187247,3.10953073,78.303,78.271,2.99122716]
[1771878187426,0.2,78.31,78.283,2.99122716]
[1771878187626,5.73819739,78.31,78.283,2.99122716]
[1771878187827,5.73819739,78.3,78.275,2.99122716]
[1771878188044,12.77155519,78.299,78.277,2.99122716]
[1771878188549,0.2,78.3,78.277,2.99122716]
[1771878188755,12.77155519,78.299,78.277,2.99122716]
[1771878189131,0.2,78.3,78.277,2.99122716]
[1771878189543,12.97149211,78.3,78.277,2.99122716]
[1771878189750,0.2,78.3,78.277,2.99122716]
[1771878190045,0.2,78.3,78.278,12.77498147]
[1771878190247,0.2,78.3,78.277,2.99122716]
[1771878190551,3.10953073,78.298,78.267,12.77665095]
[1771878190949,3.10953073,78.291,78.264,2.99122716]
[1771878191129,12.77155519,78.299,78.263,12.77741015]
[1771878191130,0.2,78.3,78.281,2.99122716]
[1771878191450,0.2,78.3,78.28,12.32640344]
[1771878191633,0.2,78.3,78.28,15.3176306]
[1771878191835,0.2,78.3,78.281,2.99122716]
[1771878192732,0.2,78.31,78.291,2.99122716]
[1771878192931,3.10953073,78.309,78.28,12.32640344]
[1771878193436,12.77008734,78.308,78.28,12.32640344]
[1771878193645,12.77008734,78.308,78.281,12.77449189]
[1771878194366,12.77008734,78.308,78.28,12.32640344]
[1771878194367,3.10953073,78.307,78.28,12.32640344]
[1771878194854,3.10953073,78.307,78.281,2.99122716]
[1771878195148,3.10953073,78.307,78.282,2.99122716]
[1771878195861,12.7704135,78.306,78.282,2.99122716]
[1771878197749,12.7704135,78.306,78.28,12.32640344]
[1771878197750,0.2,78.31,78.284,2.99122716]
[1771878198153,0.2,78.31,78.291,2.86790712]
[1771878198470,0.2,78.32,78.3,12.32640344]
[1771878198673,0.2,78.33,78.311,2.86790712]
[1771878198953,2.86402773,78.353,78.321,2.86790712]
[1771878199556,2.86402773,78.339,78.307,15.63815754]
[1771878199848,2.86402773,78.339,78.308,2.86790712]
[1771878200068,2.86402773,78.329,78.3,2.86790712]
[1771878200359,3.0498798,78.36,78.321,2.87487559]
[1771878200657,0.2,78.37,78.341,2.87487559]
[1771878200847,3.0498798,78.371,78.318,5.36086188]
[1771878200848,0.1,78.39,78.361,2.87487559]
[1771878201053,0.1,78.39,78.314,3.69383402]
[1771878201054,3.0498798,78.379,78.341,2.87487559]
[1771878201249,3.0498798,78.379,78.35,12.32640344]
[1771878201431,3.0498798,78.379,78.35,15.20127903]
[1771878201636,3.0498798,78.379,78.351,15.63795455]
[1771878201838,3.0498798,78.381,78.352,2.87487559]
[1771878202144,3.0498798,78.379,78.352,2.87487559]
[1771878202947,3.0498798,78.385,78.352,2.87487559]
[1771878203458,3.0498798,78.369,78.332,2.87487559]
[1771878203636,95.67668932,78.389,78.323,2.87487559]
[1771878203637,12.32640344,78.35,78.323,2.87487559]
[1771878203842,3.0498798,78.358,78.323,2.87487559]
[1771878204038,3.0498798,78.359,78.322,2.87487559]
[1771878205249,3.0498798,78.357,78.323,12.76764168]
[1771878206848,3.0498798,78.357,78.324,2.87487559]
[1771878207241,3.0498798,78.357,78.3,12.32640344]
[1771878207242,3.0498798,78.337,78.309,2.87487559]
[1771878208050,12.76519696,78.338,78.299,2.87487559]
[1771878208051,3.0498798,78.329,78.299,2.87487559]
[1771878208440,44.67818937,78.338,78.28,15.20127903]
[1771878208441,3.0498798,78.319,78.28,15.20127903]
[1771878208645,3.0498798,78.319,78.281,2.87487559]
[1771878208873,12.32640344,78.31,78.281,2.87487559]
[1771878209052,12.32640344,78.32,78.281,2.87487559]
[1771878209259,3.69383402,78.343,78.312,2.87487559]
[1771878209260,12.76453822,78.343,78.312,2.87487559]
[1771878210346,12.7638313,78.347,78.321,2.87487559]
[1771878210546,12.76177592,78.359,78.33,12.32640344]
[1771878210744,3.0498798,78.358,78.33,12.32640344]
[1771878210956,3.0498798,78.358,78.331,2.87487559]
[1771878211346,12.76210166,78.357,78.331,2.87487559]
[1771878211749,3.0498798,78.358,78.333,2.87487559]
[1771878211952,12.76155067,78.361,78.333,2.87487559]
[1771878212841,12.76155067,78.361,78.3,12.32640344]
[1771878212842,12.32640344,78.35,78.324,2.87487559]
[1771878213047,3.0498798,78.349,78.324,2.87487559]
[1771878213446,12.76356767,78.348,78.324,2.87487559]
[1771878213650,15.37628324,78.34,78.315,2.87487559]
[1771878214765,3.0498798,78.339,78.315,2.87487559]
[1771878215865,15.81507676,78.338,78.307,2.87487559]